fUST/lending_fUST_20250514
["ID","MTS","AMOUNT","RATE_DAILY","PERIOD"]
[361008574,1747199451088,-500.0,0.00014546,2]
[361008575,1747199451099,-500.0,0.00014546,2]
[361008576,1747199451110,-500.0,0.00014587,2]
[361008577,1747199451119,-500.81758064,0.00014587,2]
[361008578,1747199451129,-500.0,0.00014587,2]
[361008579,1747199451139,-500.0,0.00014587,2]
[361008580,1747199451149,-501.82525921,0.00014587,2]
[361008581,1747199451159,-500.0,0.00014587,2]
[361008582,1747199451169,-503.17751889,0.00014597,2]
[361008583,1747199451179,-500.0,0.00014597,2]
[361008584,1747199451188,-500.0,0.00014597,2]
[361008585,1747199451199,-500.0,0.00014671,2]
[361008586,1747199451208,-500.0,0.00014781,2]
[361008587,1747199451218,-151.0,0.00014794,2]
[361008588,1747199451228,-151.0,0.00014794,2]
[361008589,1747199451239,-151.0,0.00014794,2]
[361008590,1747199451249,-246.919092,0.00014794,2]
[361008591,1747199451258,-246.919092,0.00014794,2]
[361008592,1747199451268,-230.051954,0.00014794,2]
[361008593,1747199451280,-230.051954,0.00014794,2]
[361008594,1747199451290,-3158.42,0.00014794,2]
[361008595,1747199451300,-400.0,0.00014794,2]
[361008596,1747199451310,-400.0,0.00014794,2]
[361008597,1747199451319,-1041.5,0.00014794,2]
[361008598,1747199451329,-336.56,0.00014794,2]
[361008599,1747199451339,-400.0,0.00014794,2]
[361008600,1747199451349,-400.0,0.00014794,2]
[361008601,1747199451359,-471.18,0.00014794,2]
[361008602,1747199451369,-152.64,0.00014794,2]
[361008603,1747199451379,-472.25,0.00014794,2]
[361008604,1747199451390,-302.62,0.00014794,2]
[361008605,1747199451399,-400.0,0.00014794,2]
[361008606,1747199451408,-396.8,0.00014794,2]
[361008607,1747199451418,-400.0,0.00014794,2]
[361008608,1747199451428,-400.0,0.00014794,2]
[361008609,1747199451438,-400.0,0.00014794,2]
[361008610,1747199451448,-400.0,0.00014794,2]
[361008611,1747199451459,-397.76,0.00014794,2]
[361008612,1747199451470,-400.0,0.00014794,2]
[361008613,1747199451481,-400.0,0.00014794,2]
[361008614,1747199451492,-207.4,0.00014855,2]
[361008615,1747199451502,-246.919092,0.00014865,2]
[361008616,1747199451515,-246.919092,0.00014865,2]
[361008617,1747199451526,-3778.66810612,0.00014866,2]
[361008618,1747199451536,-637.0,0.000149,2]
[361008619,1747199451546,-652.68038405,0.00014927,2]
[361008620,1747199451557,-500.32,0.00015,20]
[361008621,1747199451567,-151.0,0.00015009,2]
[361008622,1747199451576,-230.051954,0.00015068,2]
[361008623,1747199451588,-230.051952,0.00015068,2]
[361008624,1747199451597,-3158.42,0.00015068,2]
[361008625,1747199451606,-400.0,0.00015068,2]
[361008626,1747199451617,-400.0,0.00015068,2]
[361008627,1747199451631,-1041.5,0.00015068,2]
[361008628,1747199451641,-417.12,0.00015068,2]
[361008629,1747199451650,-400.0,0.00015068,2]
[361008630,1747199451660,-472.25,0.00015068,2]
[361008631,1747199451670,-400.0,0.00015068,2]
[361008632,1747199451680,-447.7,0.00015068,2]
[361008633,1747199451690,-400.0,0.00015068,2]
[361008634,1747199451702,-212.56,0.00015068,2]
[361008635,1747199451712,-188.34,0.00015068,2]
[361008636,1747199451721,-400.0,0.00015068,2]
[361008637,1747199451732,-12627.42419379,0.00015179,2]
[361008638,1747199451742,-160.0,0.00015179,2]
[361008639,1747199451751,-160.0,0.00015179,2]
[361008640,1747199451760,-160.0,0.00015179,2]
[361008641,1747199451770,-160.0,0.00015179,2]
[361008642,1747199451779,-997.9747837,0.00015179,2]
[361008643,1747199451790,-160.0,0.00015179,2]
[361008644,1747199451800,-422.27619506,0.00015179,2]
[361008645,1747199451809,-212.21045333,0.00015179,2]
[361008646,1747199451819,-160.0,0.00015179,2]
[361008647,1747199451829,-4176.81607397,0.00015187,2]
[361008648,1747199451839,-823.0,0.000152,2]
[361008649,1747199451848,-69918.92109547,0.00015262,2]
[361008650,1747199452233,-7040.94996278,0.00015262,2]
[361008655,1747200054917,2760.84884377,0.0002,120]
[361009297,1747200643254,-5000.0,0.00011761,2]
[361009299,1747200643264,-152.0,0.00012,2]
[361009301,1747200643275,-342.91323369,0.00012847,2]
[361009303,1747200643285,-251.30072748,0.00012847,2]
[361009305,1747200643295,-500.0,0.00012847,2]
[361009307,1747200643304,-6302.6072903,0.00012848,2]
[361009309,1747200643314,-5217.80054863,0.000132,2]
[361009311,1747200643323,-542.03231587,0.00013297,2]
[361009313,1747200643335,-500.0,0.00013297,2]
[361009315,1747200643345,-500.0,0.00013297,2]
[361009317,1747200643355,-500.0,0.00013297,2]
[361009319,1747200643364,-500.0,0.00013297,2]
[361009321,1747200643374,-500.0,0.00013297,2]
[361009323,1747200643384,-500.0,0.00013297,2]
[361009325,1747200643394,-378.23001283,0.00013297,2]
[361009328,1747200643403,-8267.52102913,0.00013298,2]
[361009331,1747200643413,-5000.0,0.00013298,2]
[361009334,1747200643422,-5000.0,0.00013298,2]
[361009337,1747200643431,-5000.0,0.00013298,2]
[361009340,1747200643441,-5000.0,0.00013298,2]
[361009342,1747200643451,-1966.56617622,0.00013417,2]
[361009548,1747201649742,744.55,8.02e-05,2]
[361009916,1747201838395,-3761.6091275,0.00012,2]
[361010369,1747201843463,-2271.08753294,0.00012,2]
[361010371,1747201843473,-165.44650525,0.00012383,2]
[361010374,1747201843484,-5000.0,0.0001258,2]
[361010376,1747201843493,-576.97169401,0.00012835,2]
[361010545,1747203032536,-5000.0,0.00012045,2]
[361010547,1747203032547,-570.17221594,0.00012416,2]
[361010549,1747203032556,-300.0,0.0001266,2]
[361010551,1747203032566,-1200.0,0.0001266,2]
[361010553,1747203032576,-300.0,0.0001266,2]
[361010555,1747203032586,-10000.0,0.00012667,2]
[361010557,1747203032597,-500.0,0.00012799,2]
[361010559,1747203032606,-524.31667877,0.00012799,2]
[361010561,1747203032618,-500.0,0.00012799,2]
[361010563,1747203032628,-212.92568726,0.00012799,2]
[361010565,1747203032638,-151.5250125,0.000128,2]
[361010568,1747203032649,-7448.61701547,0.000128,2]
[361010888,1747203038356,-478.31441476,0.00012659,2]
[361011095,1747203040634,-21.68558524,0.00012659,2]
[361011097,1747203040644,-500.0,0.00012659,2]
[361011099,1747203040654,-227.81548182,0.00012659,2]
[361011101,1747203040663,-290.19893294,0.00012659,2]
[361011208,1747203042387,-283.44163695,0.00012659,2]
[361011210,1747203042397,-500.0,0.00012799,2]
[361011212,1747203042406,-500.0,0.00012799,2]
[361011214,1747203042416,-500.0,0.00012799,2]
[361011216,1747203042427,-500.0,0.00012799,2]
[361011218,1747203042437,-1350.91731452,0.000128,2]
[361011220,1747203042447,-280.62720409,0.00013594,2]
[361011222,1747203042458,-10246.31024906,0.00013694,3]
[361011224,1747203042467,-212.21045333,0.00013694,3]
[361011227,1747203042477,-400.0,0.00013698,2]
[361011229,1747203042487,-400.0,0.00013698,2]
[361011231,1747203042496,-400.0,0.00013698,2]
[361011233,1747203042506,-400.0,0.00013698,2]
[361011235,1747203042515,-400.0,0.00013698,2]
[361011237,1747203042525,-400.0,0.00013698,2]
[361011239,1747203042535,-400.0,0.00013698,2]
[361011240,1747203042546,-400.0,0.00013698,2]
[361011241,1747203042555,-400.0,0.00013698,2]
[361011242,1747203042565,-400.0,0.00013698,2]
[361011243,1747203042575,-400.0,0.00013698,2]
[361011244,1747203042585,-400.0,0.00013698,2]
[361011245,1747203042595,-400.0,0.00013698,2]
[361011246,1747203042605,-400.0,0.00013698,2]
[361011247,1747203042615,-57.93484297,0.00013698,2]
[361011618,1747203046612,-342.06515703,0.00013698,2]
[361011620,1747203046622,-400.0,0.00013698,2]
[361011622,1747203046631,-400.0,0.00013698,2]
[361011624,1747203046641,-400.0,0.00013698,2]
[361011626,1747203046651,-400.0,0.00013698,2]
[361011628,1747203046661,-400.0,0.00013698,2]
[361011630,1747203046670,-400.0,0.00013698,2]
[361011632,1747203046680,-400.0,0.00013698,2]
[361011634,1747203046690,-400.0,0.00013698,2]
[361011636,1747203046700,-400.0,0.00013698,2]
[361011638,1747203046709,-2652.07,0.00013698,2]
[361011640,1747203046719,-400.0,0.00013698,2]
[361011642,1747203046729,-46.81480575,0.00013698,2]
[361011765,1747204232743,-2137.52512347,0.00012083,2]
[361012079,1747204243959,-2862.47487653,0.00012083,2]
[361012080,1747204243968,-170.38,0.00012329,2]
[361012081,1747204243977,-851.9,0.00012329,2]
[361012082,1747204243987,-411.7591493,0.00012698,2]
[361012083,1747204243996,-300.0,0.00013032,2]
[361012084,1747204244005,-590.98597417,0.00013033,2]
[361012365,1747204246766,-609.01402583,0.00013033,2]
[361012367,1747204246776,-300.0,0.00013035,2]
[361012369,1747204246785,-6203.95465739,0.00013036,2]
[361012371,1747204246795,-151.0,0.00013417,2]
[361012373,1747204246804,-508.46509538,0.00013598,2]
[361012375,1747204246813,-652.68038405,0.00013619,2]
[361012377,1747204246823,-367.02167513,0.00013697,2]
[361012379,1747204246832,-500.0,0.00013697,2]
[361012381,1747204246842,-500.0,0.00013697,2]
[361012384,1747204246851,-500.0,0.00013697,2]
[361012386,1747204246860,-500.0,0.00013697,2]
[361012388,1747204246870,-549.04798108,0.00013697,2]
[361012389,1747204246879,-151.0,0.00013698,2]
[361012392,1747204246889,-151.0,0.00013698,2]
[361012393,1747204246898,-151.0,0.00013698,2]
[361012395,1747204246907,-151.0,0.00013698,2]
[361012397,1747204246916,-151.0,0.00013698,2]
[361012399,1747204246926,-151.0,0.00013698,2]
[361012402,1747204246936,-151.390649,0.00013698,2]
[361012404,1747204246945,-151.0,0.00013698,2]
[361012406,1747204246955,-151.0,0.00013698,2]
[361012408,1747204246964,-151.0,0.00013698,2]
[361012410,1747204246973,-270.979252,0.00013698,2]
[361012412,1747204246982,-165.056846,0.00013698,2]
[361012414,1747204246991,-400.43162854,0.00013698,2]
[361012416,1747204247000,-404.37340368,0.00013698,2]
[361012418,1747204247008,-401.49142162,0.00013698,2]
[361012419,1747204247016,-400.0,0.00013698,2]
[361012421,1747204247024,-151.0,0.00013698,2]
[361012424,1747204247033,-151.0,0.00013698,2]
[361012426,1747204247042,-151.0,0.00013698,2]
[361012427,1747204247050,-158.13725,0.00013698,2]
[361012430,1747204247061,-151.0,0.00013698,2]
[361012432,1747204247071,-151.0,0.00013698,2]
[361012434,1747204247080,-151.0,0.00013698,2]
[361012436,1747204247089,-151.0,0.00013698,2]
[361012438,1747204247099,-151.0,0.00013698,2]
[361012440,1747204247109,-400.0,0.00013698,2]
[361012442,1747204247119,-400.0,0.00013698,2]
[361012444,1747204247128,-400.0,0.00013698,2]
[361012446,1747204247137,-400.0,0.00013698,2]
[361012448,1747204247147,-400.0,0.00013698,2]
[361012450,1747204247157,-400.0,0.00013698,2]
[361012452,1747204247166,-152.171628,0.00013698,2]
[361012454,1747204247175,-530.740653,0.00013698,2]
[361012456,1747204247186,-530.740653,0.00013698,2]
[361012458,1747204247195,-530.740653,0.00013698,2]
[361012460,1747204247205,-530.740653,0.00013698,2]
[361012462,1747204247214,-400.0,0.00013698,2]
[361012464,1747204247224,-530.740653,0.00013698,2]
[361012466,1747204247233,-530.740653,0.00013698,2]
[361012468,1747204247243,-530.740653,0.00013698,2]
[361012470,1747204247252,-530.740653,0.00013698,2]
[361012472,1747204247262,-530.740653,0.00013698,2]
[361012474,1747204247272,-530.740653,0.00013698,2]
[361012476,1747204247282,-530.740653,0.00013698,2]
[361012478,1747204247291,-530.740653,0.00013698,2]
[361012480,1747204247301,-530.740653,0.00013698,2]
[361012482,1747204247310,-530.740653,0.00013698,2]
[361012484,1747204247320,-151.0,0.00013698,2]
[361012486,1747204247330,-151.0,0.00013698,2]
[361012488,1747204247339,-151.0,0.00013698,2]
[361012490,1747204247350,-151.0,0.00013698,2]
[361012492,1747204247359,-151.0,0.00013698,2]
[361012494,1747204247369,-151.0,0.00013698,2]
[361012496,1747204247382,-151.0,0.00013698,2]
[361012498,1747204247391,-151.0,0.00013698,2]
[361012500,1747204247401,-151.0,0.00013698,2]
[361012503,1747204247410,-151.0,0.00013698,2]
[361012504,1747204247420,-151.0,0.00013698,2]
[361012506,1747204247430,-151.0,0.00013698,2]
[361012509,1747204247443,-151.0,0.00013698,2]
[361012511,1747204247453,-400.0,0.00013698,2]
[361012513,1747204247463,-151.0,0.00013698,2]
[361012515,1747204247472,-151.0,0.00013698,2]
[361012517,1747204247483,-400.0,0.00013698,2]
[361012519,1747204247492,-400.0,0.00013698,2]
[361012521,1747204247501,-400.0,0.00013698,2]
[361012523,1747204247511,-400.0,0.00013698,2]
[361012525,1747204247522,-400.0,0.00013698,2]
[361012527,1747204247532,-517.97,0.00013698,2]
[361012529,1747204247542,-151.0,0.00013698,2]
[361012531,1747204247551,-151.0,0.00013698,2]
[361012533,1747204247561,-151.0,0.00013698,2]
[361012535,1747204247571,-180.734226,0.00013698,2]
[361012537,1747204247580,-151.0,0.00013698,2]
[361012539,1747204247590,-151.0,0.00013698,2]
[361012541,1747204247599,-400.0,0.00013698,2]
[361012543,1747204247609,-400.0,0.00013698,2]
[361012545,1747204247619,-153.097539,0.00013698,2]
[361012547,1747204247629,-153.097539,0.00013698,2]
[361012549,1747204247638,-153.097539,0.00013698,2]
[361012551,1747204247649,-153.097539,0.00013698,2]
[361012553,1747204247658,-153.097539,0.00013698,2]
[361012555,1747204247668,-153.097539,0.00013698,2]
[361012557,1747204247677,-153.097539,0.00013698,2]
[361012559,1747204247687,-151.0,0.00013698,2]
[361012561,1747204247696,-153.097539,0.00013698,2]
[361012563,1747204247706,-400.0,0.00013698,2]
[361012565,1747204247715,-153.097539,0.00013698,2]
[361012567,1747204247725,-153.097539,0.00013698,2]
[361012569,1747204247734,-153.097539,0.00013698,2]
[361012571,1747204247744,-153.097539,0.00013698,2]
[361012573,1747204247754,-153.097539,0.00013698,2]
[361012575,1747204247763,-400.0,0.00013698,2]
[361012577,1747204247774,-153.097539,0.00013698,2]
[361012579,1747204247784,-151.0,0.00013698,2]
[361012581,1747204247793,-151.0,0.00013698,2]
[361012583,1747204247803,-151.0,0.00013698,2]
[361012585,1747204247812,-400.0,0.00013698,2]
[361012587,1747204247822,-400.0,0.00013698,2]
[361012589,1747204247831,-400.0,0.00013698,2]
[361012591,1747204247840,-151.0,0.00013698,2]
[361012593,1747204247849,-151.0,0.00013698,2]
[361012595,1747204247859,-400.0,0.00013698,2]
[361012597,1747204247868,-430.49927599,0.00013698,2]
[361012599,1747204247877,-400.0,0.00013698,2]
[361012601,1747204247887,-400.0,0.00013698,2]
[361012603,1747204247896,-400.0,0.00013698,2]
[361012605,1747204247905,-400.0,0.00013698,2]
[361012607,1747204247914,-400.0,0.00013698,2]
[361012609,1747204247924,-400.0,0.00013698,2]
[361012611,1747204247933,-2573.04,0.00013698,2]
[361012613,1747204247943,-400.0,0.00013698,2]
[361012615,1747204247952,-400.0,0.00013698,2]
[361012617,1747204247962,-400.0,0.00013698,2]
[361012619,1747204247973,-771.45,0.00013698,2]
[361012620,1747204247982,-400.0,0.00013698,2]
[361012621,1747204247992,-460.95,0.00013698,2]
[361012622,1747204248001,-151.0,0.00013698,2]
[361012623,1747204248011,-152.68051,0.00013698,2]
[361012624,1747204248020,-466.73631942,0.00013698,2]
[361012625,1747204248029,-400.0,0.00013698,2]
[361012626,1747204248039,-400.0,0.00013698,2]
[361012627,1747204248048,-151.0,0.00013698,2]
[361012628,1747204248058,-151.0,0.00013698,2]
[361012629,1747204248067,-400.0,0.00013698,2]
[361012630,1747204248077,-151.0,0.00013698,2]
[361012631,1747204248087,-151.0,0.00013698,2]
[361012632,1747204248097,-151.0,0.00013698,2]
[361012634,1747204248106,-151.0,0.00013698,2]
[361012636,1747204248115,-895.08,0.00013698,2]
[361012638,1747204248125,-400.0,0.00013698,2]
[361012640,1747204248135,-400.0,0.00013698,2]
[361012642,1747204248144,-400.0,0.00013698,2]
[361012644,1747204248154,-400.0,0.00013698,2]
[361012646,1747204248164,-400.0,0.00013698,2]
[361012648,1747204248174,-151.0,0.00013698,2]
[361012650,1747204248184,-151.0,0.00013698,2]
[361012652,1747204248193,-156.675536,0.00013698,2]
[361012654,1747204248203,-400.0,0.00013698,2]
[361012656,1747204248212,-400.0,0.00013698,2]
[361012658,1747204248221,-400.0,0.00013698,2]
[361012660,1747204248231,-400.0,0.00013698,2]
[361012662,1747204248241,-400.0,0.00013698,2]
[361012664,1747204248251,-400.0,0.00013698,2]
[361012666,1747204248261,-400.0,0.00013698,2]
[361012668,1747204248271,-400.0,0.00013698,2]
[361012670,1747204248281,-400.0,0.00013698,2]
[361012672,1747204248291,-401.64,0.00013698,2]
[361012674,1747204248302,-400.0,0.00013698,2]
[361012676,1747204248311,-569.27,0.00013698,2]
[361012678,1747204248321,-553.92,0.00013698,2]
[361012680,1747204248331,-1126.04,0.00013698,2]
[361012682,1747204248340,-400.0,0.00013698,2]
[361012684,1747204248350,-4166.66,0.00013698,2]
[361012686,1747204248359,-400.0,0.00013698,2]
[361012688,1747204248368,-400.0,0.00013698,2]
[361012689,1747204248378,-400.0,0.00013698,2]
[361012692,1747204248388,-409.82,0.00013698,2]
[361012693,1747204248398,-400.0,0.00013698,2]
[361012695,1747204248408,-443.79,0.00013698,2]
[361012697,1747204248419,-400.0,0.00013698,2]
[361012699,1747204248428,-400.0,0.00013698,2]
[361012702,1747204248439,-474.64,0.00013698,2]
[361012704,1747204248449,-400.0,0.00013698,2]
[361012705,1747204248459,-401.2944643,0.00013698,2]
[361012708,1747204248468,-400.0,0.00013698,2]
[361012710,1747204248478,-400.0,0.00013698,2]
[361012711,1747204248489,-400.0,0.00013698,2]
[361012713,1747204248498,-400.0,0.00013698,2]
[361012715,1747204248508,-400.0,0.00013698,2]
[361012717,1747204248517,-311.29218256,0.00013698,2]
[361012719,1747204248528,-2391.3,0.00013698,2]
[361012721,1747204248537,-400.0,0.00013698,2]
[361012723,1747204248547,-151.0,0.00013698,2]
[361012725,1747204248557,-151.0,0.00013698,2]
[361012727,1747204248566,-151.0,0.00013698,2]
[361012729,1747204248576,-1056.3,0.00013698,2]
[361012731,1747204248586,-400.0,0.00013698,2]
[361012733,1747204248595,-151.0,0.00013698,2]
[361012735,1747204248605,-151.0,0.00013698,2]
[361012737,1747204248615,-436.01,0.00013698,2]
[361012739,1747204248624,-151.0,0.00013698,2]
[361012741,1747204248634,-151.0,0.00013698,2]
[361012743,1747204248643,-197.928176,0.00013698,2]
[361012745,1747204248653,-400.0,0.00013698,2]
[361012748,1747204248662,-400.0,0.00013698,2]
[361012749,1747204248671,-560.93,0.00013698,2]
[361012752,1747204248681,-400.0,0.00013698,2]
[361012753,1747204248691,-400.0,0.00013698,2]
[361012755,1747204248700,-400.0,0.00013698,2]
[361012757,1747204248710,-400.0,0.00013698,2]
[361012759,1747204248721,-400.0,0.00013698,2]
[361012761,1747204248730,-400.0,0.00013698,2]
[361012763,1747204248739,-400.0,0.00013698,2]
[361012765,1747204248749,-3821.41,0.00013698,2]
[361012767,1747204248758,-400.0,0.00013698,2]
[361012769,1747204248767,-151.0,0.00013699,2]
[361012771,1747204248777,-151.0,0.00013699,2]
[361012774,1747204248787,-151.0,0.00013699,2]
[361012775,1747204248797,-605.968643,0.00013699,2]
[361012778,1747204248806,-151.0,0.00013699,2]
[361012779,1747204248816,-151.0,0.00013699,2]
[361012781,1747204248825,-530.740653,0.00013699,2]
[361012784,1747204248835,-530.740653,0.00013699,2]
[361012786,1747204248845,-153.097539,0.00013699,2]
[361012787,1747204248854,-153.097539,0.00013699,2]
[361012790,1747204248864,-500.0,0.00013699,2]
[361012791,1747204248873,-500.0,0.00013699,2]
[361012793,1747204248883,-500.0,0.00013699,2]
[361012795,1747204248892,-500.0,0.00013699,2]
[361012797,1747204248902,-464.80652283,0.00013699,2]
[361012799,1747204248912,-530.740653,0.0001387,2]
[361012801,1747204248921,-530.740653,0.0001387,2]
[361012803,1747204248930,-153.097539,0.0001387,2]
[361012806,1747204248940,-153.097539,0.0001387,2]
[361012808,1747204248950,-5710.34573047,0.0001387,2]
[361012809,1747204248959,-152.0,0.00013894,2]
[361012811,1747204248968,-151.0,0.000139,2]
[361012814,1747204248978,-151.0,0.000139,2]
[361012815,1747204248987,-151.0,0.000139,2]
[361012818,1747204248997,-151.0,0.000139,2]
[361012820,1747204249007,-506.4664115,0.000139,2]
[361012822,1747204249017,-363.0527802,0.000139,2]
[361012824,1747204249027,-363.0527802,0.000139,2]
[361012826,1747204249036,-167.8337621,0.000139,2]
[361012828,1747204249045,-151.0,0.000139,2]
[361012830,1747204249054,-7979.07184046,0.000139,2]
[361012832,1747204249063,-131469.41962821,0.0001397,2]
[361012834,1747204249072,-151.0,0.0001397,2]
[361012835,1747204249081,-298.899104,0.0001397,2]
[361012837,1747204249091,-151.0,0.0001397,2]
[361012839,1747204249100,-151.0,0.0001397,2]
[361012842,1747204249109,-151.0,0.0001397,2]
[361012844,1747204249118,-151.0,0.0001397,2]
[361012846,1747204249128,-151.0,0.0001397,2]
[361012848,1747204249137,-151.0,0.0001397,2]
[361012850,1747204249147,-151.0,0.0001397,2]
[361012852,1747204249156,-530.740653,0.0001397,2]
[361012854,1747204249165,-530.740655,0.0001397,2]
[361012856,1747204249174,-153.097539,0.0001397,2]
[361012858,1747204249184,-153.097539,0.0001397,2]
[361012860,1747204249193,-151.0,0.00013972,2]
[361012862,1747204249204,-151.0,0.00013972,2]
[361012864,1747204249213,-151.0,0.00013972,2]
[361012866,1747204249223,-151.0,0.00013972,2]
[361012868,1747204249232,-166.316423,0.00013972,2]
[361012870,1747204249242,-151.0,0.00013972,2]
[361012872,1747204249251,-151.0,0.00013972,2]
[361012874,1747204249261,-151.0,0.00013972,2]
[361012876,1747204249270,-151.0,0.00013972,2]
[361012878,1747204249279,-151.0,0.00013972,2]
[361012880,1747204249288,-151.0,0.00013972,2]
[361012882,1747204249298,-151.0,0.00013972,2]
[361012884,1747204249307,-151.0,0.00013972,2]
[361012886,1747204249316,-400.0,0.00013972,2]
[361012888,1747204249326,-151.0,0.00013972,2]
[361012890,1747204249335,-151.0,0.00013972,2]
[361012892,1747204249344,-151.0,0.00013972,2]
[361012894,1747204249353,-151.0,0.00013972,2]
[361012896,1747204249363,-482.71,0.00013972,2]
[361012898,1747204249373,-400.0,0.00013972,2]
[361012900,1747204249383,-343.93492475,0.00013972,2]
[361012902,1747204249393,-400.0,0.00013972,2]
[361012904,1747204249402,-400.0,0.00013972,2]
[361012906,1747204249412,-400.0,0.00013972,2]
[361012908,1747204249421,-400.0,0.00013972,2]
[361012910,1747204249431,-400.0,0.00013972,2]
[361012912,1747204249442,-400.0,0.00013972,2]
[361012929,1747204249597,-400.0,0.00013972,2]
[361012931,1747204249607,-400.0,0.00013972,2]
[361012933,1747204249616,-400.0,0.00013972,2]
[361012935,1747204249626,-400.0,0.00013972,2]
[361012937,1747204249636,-400.0,0.00013972,2]
[361012940,1747204249646,-400.0,0.00013972,2]
[361012942,1747204249656,-400.0,0.00013972,2]
[361012944,1747204249666,-400.0,0.00013972,2]
[361012946,1747204249676,-400.0,0.00013972,2]
[361012948,1747204249685,-400.0,0.00013972,2]
[361012950,1747204249696,-400.0,0.00013972,2]
[361012952,1747204249705,-400.0,0.00013972,2]
[361012954,1747204249714,-400.0,0.00013972,2]
[361012956,1747204249723,-400.0,0.00013972,2]
[361012958,1747204249732,-2573.04,0.00013972,2]
[361012960,1747204249741,-400.0,0.00013972,2]
[361012962,1747204249749,-400.0,0.00013972,2]
[361012964,1747204249759,-400.0,0.00013972,2]
[361012966,1747204249768,-771.45,0.00013972,2]
[361012968,1747204249777,-400.0,0.00013972,2]
[361012969,1747204249785,-460.95,0.00013972,2]
[361012970,1747204249794,-400.0,0.00013972,2]
[361012971,1747204249802,-243.55583362,0.00013972,2]
[361012972,1747204249810,-400.0,0.00013972,2]
[361012973,1747204249819,-895.08,0.00013972,2]
[361012974,1747204249828,-400.0,0.00013972,2]
[361012975,1747204249837,-400.0,0.00013972,2]
[361012976,1747204249845,-400.0,0.00013972,2]
[361012977,1747204249853,-400.0,0.00013972,2]
[361012978,1747204249862,-400.0,0.00013972,2]
[361012979,1747204249870,-400.0,0.00013972,2]
[361012980,1747204249879,-400.0,0.00013972,2]
[361012981,1747204249886,-400.0,0.00013972,2]
[361012982,1747204249895,-400.0,0.00013972,2]
[361012984,1747204249904,-400.0,0.00013972,2]
[361012986,1747204249913,-400.0,0.00013972,2]
[361012988,1747204249921,-400.0,0.00013972,2]
[361012990,1747204249931,-400.0,0.00013972,2]
[361012992,1747204249938,-400.0,0.00013972,2]
[361012994,1747204249945,-401.64,0.00013972,2]
[361012996,1747204249953,-350.52,0.00013972,2]
[361012998,1747204249962,-569.27,0.00013972,2]
[361013000,1747204249971,-553.92,0.00013972,2]
[361013002,1747204249980,-1126.04,0.00013972,2]
[361013004,1747204249989,-400.0,0.00013972,2]
[361013006,1747204249998,-4166.66,0.00013972,2]
[361013008,1747204250007,-400.0,0.00013972,2]
[361013010,1747204250017,-400.0,0.00013972,2]
[361013011,1747204250026,-400.0,0.00013972,2]
[361013014,1747204250035,-409.82,0.00013972,2]
[361013016,1747204250045,-400.0,0.00013972,2]
[361013017,1747204250056,-443.79,0.00013972,2]
[361013020,1747204250065,-400.0,0.00013972,2]
[361013022,1747204250076,-400.0,0.00013972,2]